[Event "8. Arber-Schachopen 2019"]
[Site "Bodenmais"]
[Date "2019.07.30"]
[Round "4.19"]
[White "Zepke, Armin"]
[Black "Meixner, Torsten"]
[Result "1-0"]
[ECO "D00"]
[WhiteElo "2122"]
[BlackElo "1881"]
[Annotator "NA"]
[PlyCount "97"]
[EventDate "2019.07.27"]
[EventCountry "GER"]
[SourceTitle "playchess.com"]
[Source "ChessBase"]
[SourceQuality "1"]
[TimeControl "40/5400+30:1800+30"]

1. d4 {[%emt 0:00:00]} d5 {[%emt 0:00:00]} 2. Bf4 {[%emt 0:00:00]} Nf6 {[%emt 0:00:00]} 3. e3 {[%emt 0:00:00]} e6 {[%emt 0:00:07]} 4. Nf3 {[%emt 0:00:11]} c5 {[%emt 0:00:26]} 5. c3 {[%emt 0:00:11]} Nc6 {[%emt 0:00:09]} 6. Nbd2 {[%emt 0:00:44]} Bd6 {[%emt 0:00:17]} 7. Bxd6 {[%emt 0:01:00]} Qxd6 {[%emt 0:00:17]} 8. Bb5 {[%emt 0:00:09]} O-O {[%emt 0:00:32]} 9. O-O {[%emt 0:00:31]} a6 {[%emt 0:00:27]} 10. Bxc6 {[%emt 0:00:21]} bxc6 {[%emt 0:00:26]} 11. Ne5 {[%emt 0:06:15]} Nd7 {[%emt 0:01:38]} 12. Nxd7 {[%emt 0:01:34]} Bxd7 {[%emt 0:00:15]} 13. Nb3 {[%emt 0:01:04]} c4 {[%emt 0:01:45]} 14. Nc5 {[%emt 0:00:13]} f6 {[%emt 0:00:37]} 15. b3 {[%emt 0:01:18]} cxb3 {[%emt 0:00:48]} 16. axb3 {[%emt 0:00:10]} Bc8 {[%emt 0:02:34]} 17. Qe2 {[%emt 0:05:11]} Rf7 {[%emt 0:00:22]} 18. Ra5 {[%emt 0:15:12]} e5 {[%emt 0:04:46]} 19. Rfa1 {[%emt 0:00:25]} f5 {[%emt 0:01:34]} 20. f4 {[%emt 0:08:46]} exf4 {[%emt 0:01:39]} 21. exf4 {[%emt 0:00:23]} Re7 {[%emt 0:00:55]} 22. Qd2 {[%emt 0:02:37]} Qg6 {[%emt 0:01:07]} 23. Re1 {[%emt 0:04:37]} Qe8 {[%emt 0:01:25]} 24. Raa1 {[%emt 0:03:02]} Raa7 {[%emt 0:00:08]} 25. b4 {[%emt 0:00:37]} g6 {[%emt 0:01:08]} 26. Kf2 {[%emt 0:03:18]} Kf7 {[%emt 0:00:23]} 27. Rxe7+ {[%emt 0:09:35]} Qxe7 {[%emt 0:01:06]} 28. g3 {[%emt 0:00:27]} h5 {[%emt 0:00:31]} 29. h4 {[%emt 0:12:47]} Qd8 {[%emt 0:01:26]} 30. Nd3 {[%emt 0:03:24]} Kf6 {[%emt 0:00:53]} 31. Ne5 {[%emt 0:01:32]} Qc7 {[%emt 0:00:41]} 32. Ra5 {[%emt 0:03:09]} Qb6 {[%emt 0:02:06]} 33. Qa2 {[%emt 0:01:51]} Re7 {[%emt 0:01:10]} 34. Qa4 {[%emt 0:01:08]} Bb7 {[%emt 0:02:14]} 35. Rc5 {[%emt 0:03:48]} Rc7 {[%emt 0:00:27]} 36. Ke3 {[%emt 0:05:56]} Kg7 {[%emt 0:02:29]} 37. Kd2 {[%emt 0:00:13]} Kh7 {[%emt 0:01:02]} 38. Kc2 {[%emt 0:01:17]} Rc8 {[%emt 0:00:26]} 39. Qa5 {[%emt 0:01:38]} Qa7 {[%emt 0:02:32]} 40. Kd2 {[%emt 0:02:17]} Qb8 {[%emt 0:00:40]} 41. Qb6 {[%emt 0:32:39]} Qc7 {[%emt 0:34:03]} 42. Qxc7+ {[%emt 0:00:37]} Rxc7 {[%emt 0:00:02]} 43. Kc2 {[%emt 0:00:15]} Kg7 {[%emt 0:00:06]} 44. Kb3 {[%emt 0:00:09]} Kf6 {[%emt 0:00:28]} 45. Ka4 {[%emt 0:00:07]} Ke6 {[%emt 0:01:28]} 46. Ka5 {[%emt 0:00:27]} Kd6 {[%emt 0:00:17]} 47. Kb6 {[%emt 0:00:16]} Rg7 {[%emt 0:01:36]} 48. Nxc6 {[%emt 0:01:45]} Ke6 {[%emt 0:00:52]} 49. Nd8+ 1-0

[Event "8. Arber-Schachopen 2019"]
[Site "Bodenmais"]
[Date "2019.07.30"]
[Round "4.20"]
[White "Vennemann, Juergen"]
[Black "Fuchs, Michael"]
[Result "1-0"]
[ECO "A53"]
[WhiteElo "1925"]
[BlackElo "2114"]
[Annotator "NA"]
[PlyCount "73"]
[EventDate "2019.07.27"]
[EventCountry "GER"]
[SourceTitle "playchess.com"]
[Source "ChessBase"]
[SourceQuality "1"]
[TimeControl "40/5400+30:1800+30"]

1. d4 {[%emt 0:00:00]} Nf6 {[%emt 0:00:00]} 2. c4 {[%emt 0:00:00]} d6 {[%emt 0:00:00]} 3. Nc3 {[%emt 0:00:06]} Nbd7 {[%emt 0:00:00]} 4. e4 {[%emt 0:00:16]} e5 {[%emt 0:00:05]} 5. Nge2 {[%emt 0:01:47]} Be7 {[%emt 0:04:41]} 6. f3 {[%emt 0:05:10]} c6 {[%emt 0:04:27]} 7. Be3 {[%emt 0:01:06]} O-O {[%emt 0:04:15]} 8. Ng3 {[%emt 0:08:12]} exd4 {[%emt 0:01:10]} 9. Bxd4 {[%emt 0:01:26]} Ne5 {[%emt 0:02:04]} 10. Be2 {[%emt 0:00:47]} Be6 {[%emt 0:04:09]} 11. b3 {[%emt 0:09:24]} Qa5 {[%emt 0:05:50]} 12. Qd2 {[%emt 0:01:22]} Ng6 {[%emt 0:02:24]} 13. O-O {[%emt 0:03:37]} h5 {[%emt 0:02:42]} 14. Rad1 {[%emt 0:07:52]} h4 {[%emt 0:00:41]} 15. Nh1 {[%emt 0:04:26]} Bd8 {[%emt 0:13:48]} 16. Nf2 {[%emt 0:05:40]} Nh5 {[%emt 0:02:25]} 17. Nd3 {[%emt 0:15:14]} f5 {[%emt 0:11:58]} 18. f4 {[%emt 0:06:04]} Nf6 {[%emt 0:03:26]} 19. e5 {[%emt 0:09:35]} dxe5 {[%emt 0:02:17]} 20. Nxe5 {[%emt 0:01:46]} Nxe5 {[%emt 0:02:19]} 21. Bxe5 {[%emt 0:00:02]} Bb6+ {[%emt 0:01:42]} 22. Kh1 {[%emt 0:00:49]} Rad8 {[%emt 0:00:19]} 23. Qb2 {[%emt 0:00:45]} Bc5 {[%emt 0:03:14]} 24. Na4 {[%emt 0:04:21]} Be7 {[%emt 0:01:39]} 25. Rfe1 {[%emt 0:02:05]} Ne4 {[%emt 0:02:37]} 26. Bf3 {[%emt 0:02:22]} Bb4 {[%emt 0:05:03]} 27. Rf1 {[%emt 0:01:23]} Nd2 {[%emt 0:07:29]} 28. Bxg7 {[%emt 0:04:03]} Nxf1 {[%emt 0:04:55]} 29. Bxf8 {[%emt 0:01:32]} Bxf8 {[%emt 0:00:10]} 30. Rxf1 {[%emt 0:00:07]} Rd2 {[%emt 0:01:06]} 31. Qf6 {[%emt 0:00:17]} Bd7 {[%emt 0:01:19]} 32. Bh5 {[%emt 0:00:45]} Bg7 {[%emt 0:01:21]} 33. Qxh4 {[%emt 0:01:34]} Rd6 {[%emt 0:04:07]} 34. Qe7 {[%emt 0:00:34]} Qc7 {[%emt 0:00:54]} 35. Bf7+ {[%emt 0:00:26]} Kh7 {[%emt 0:00:23]} 36. Nc5 {[%emt 0:01:04]} b6 {[%emt 0:00:28]} 37. Ne6 {[%emt 0:00:20]} 1-0

[Event "8. Arber-Schachopen 2019"]
[Site "Bodenmais"]
[Date "2019.07.30"]
[Round "4.21"]
[White "Schmahl, Stephan"]
[Black "Fuchs, Florian"]
[Result "1-0"]
[ECO "E63"]
[WhiteElo "2101"]
[BlackElo "2235"]
[Annotator "NA"]
[PlyCount "49"]
[EventDate "2019.07.27"]
[EventCountry "GER"]
[SourceTitle "playchess.com"]
[Source "ChessBase"]
[SourceQuality "1"]
[TimeControl "40/5400+30:1800+30"]

1. d4 {[%emt 0:00:00]} Nf6 {[%emt 0:00:00]} 2. c4 {[%emt 0:00:00]} g6 {[%emt 0:00:00]} 3. Nf3 {[%emt 0:01:15]} Bg7 {[%emt 0:00:00]} 4. g3 {[%emt 0:00:05]} d6 {[%emt 0:00:16]} 5. Bg2 {[%emt 0:00:06]} O-O {[%emt 0:00:08]} 6. O-O {[%emt 0:00:13]} Nc6 {[%emt 0:00:21]} 7. Nc3 {[%emt 0:00:22]} a6 {[%emt 0:00:52]} 8. b3 {[%emt 0:14:46]} Rb8 {[%emt 0:00:19]} 9. Nd5 {[%emt 0:01:03]} b5 {[%emt 0:07:13]} 10. Nxf6+ {[%emt 0:04:34]} Bxf6 {[%emt 0:00:12]} 11. cxb5 {[%emt 0:03:12]} axb5 {[%emt 0:01:52]} 12. Bh6 {[%emt 0:04:42]} Re8 {[%emt 0:01:23]} 13. Rc1 {[%emt 0:01:00]} Bd7 {[%emt 0:03:15]} 14. d5 {[%emt 0:04:38]} Ne5 {[%emt 0:01:39]} 15. Nxe5 {[%emt 0:11:17]} Bxe5 {[%emt 0:00:16]} 16. f4 {[%emt 0:02:36]} Bh8 {[%emt 0:01:33]} 17. Qc2 {[%emt 0:05:02]} Rc8 {[%emt 0:01:46]} 18. f5 {[%emt 0:09:00]} Bg7 {[%emt 0:06:04]} 19. Bxg7 {[%emt 0:09:20]} Kxg7 {[%emt 0:00:06]} 20. Qc3+ {[%emt 0:00:24]} Kg8 {[%emt 0:00:38]} 21. Be4 {[%emt 0:00:45]} gxf5 {[%emt 0:05:18]} 22. Bxf5 {[%emt 0:00:03]} e6 {[%emt 0:00:58]} 23. Bxh7+ {[%emt 0:08:12]} Kxh7 {[%emt 0:02:09]} 24. Rxf7+ {[%emt 0:00:03]} Kg6 {[%emt 0:00:14]} 25. Qg7+ {[%emt 0:01:08]} 1-0

[Event "8. Arber-Schachopen 2019"]
[Site "Bodenmais"]
[Date "2019.07.30"]
[Round "4.22"]
[White "Liebold, Aaron"]
[Black "Bielmeier, Ludwig"]
[Result "1/2-1/2"]
[ECO "B10"]
[WhiteElo "1944"]
[BlackElo "2083"]
[Annotator "NA"]
[PlyCount "125"]
[EventDate "2019.07.27"]
[EventCountry "GER"]
[SourceTitle "playchess.com"]
[Source "ChessBase"]
[SourceQuality "1"]
[TimeControl "40/5400+30:1800+30"]

1. e4 c6 {[%emt 0:03:17]} 2. Nc3 {[%emt 0:00:00]} d5 {[%emt 0:02:31]} 3. Qe2 {[%emt 0:00:09]} dxe4 {[%emt 0:02:39]} 4. Nxe4 {[%emt 0:00:08]} Nf6 {[%emt 0:00:52]} 5. Nxf6+ {[%emt 0:01:04]} gxf6 {[%emt 0:00:16]} 6. Nf3 {[%emt 0:00:31]} Bf5 {[%emt 0:02:36]} 7. d3 {[%emt 0:00:27]} Nd7 {[%emt 0:02:09]} 8. g3 {[%emt 0:00:18]} Bg7 {[%emt 0:00:55]} 9. Bg2 {[%emt 0:00:13]} Nb6 {[%emt 0:02:00]} 10. O-O {[%emt 0:00:52]} O-O {[%emt 0:02:22]} 11. b3 {[%emt 0:04:21]} Qd7 {[%emt 0:01:57]} 12. Re1 {[%emt 0:02:14]} Rfe8 {[%emt 0:05:47]} 13. Bb2 {[%emt 0:01:00]} Bg4 {[%emt 0:03:07]} 14. Qd2 {[%emt 0:09:47]} e5 {[%emt 0:04:37]} 15. Nh4 {[%emt 0:05:59]} Bh5 {[%emt 0:05:41]} 16. Be4 {[%emt 0:03:32]} Bg6 {[%emt 0:01:20]} 17. Nxg6 {[%emt 0:02:25]} hxg6 {[%emt 0:00:33]} 18. Rad1 {[%emt 0:00:42]} Rad8 {[%emt 0:09:16]} 19. c4 {[%emt 0:10:08]} Qg4 {[%emt 0:04:09]} 20. Qc3 {[%emt 0:11:23]} Nc8 {[%emt 0:02:13]} 21. Bg2 {[%emt 0:01:07]} Re7 {[%emt 0:10:28]} 22. Qc2 {[%emt 0:07:02]} Red7 {[%emt 0:01:47]} 23. Re4 {[%emt 0:09:25]} Qf5 {[%emt 0:04:43]} 24. Qe2 {[%emt 0:09:23]} Nd6 {[%emt 0:03:52]} 25. g4 {[%emt 0:00:57]} Qe6 {[%emt 0:00:30]} 26. Re3 {[%emt 0:00:42]} Bh6 {[%emt 0:06:54]} 27. Rh3 {[%emt 0:01:35]} Bg5 {[%emt 0:00:22]} 28. Bc1 {[%emt 0:01:41]} Bxc1 {[%emt 0:05:19]} 29. Rxc1 {[%emt 0:00:05]} f5 {[%emt 0:01:55]} 30. Re3 {[%emt 0:07:42]} Qf6 {[%emt 0:00:27]} 31. Rxe5 {[%emt 0:02:16]} fxg4 {[%emt 0:00:39]} 32. Re1 {[%emt 0:03:18]} Nf5 {[%emt 0:01:21]} 33. Re8+ {[%emt 0:01:49]} Kg7 {[%emt 0:00:29]} 34. Rxd8 {[%emt 0:01:00]} Rxd8 {[%emt 0:00:12]} 35. Be4 {[%emt 0:00:51]} Nh6 {[%emt 0:01:41]} 36. Qe3 {[%emt 0:00:55]} b6 {[%emt 0:01:27]} 37. d4 {[%emt 0:02:13]} Rxd4 {[%emt 0:02:46]} 38. Bxc6 {[%emt 0:00:22]} Rf4 {[%emt 0:00:26]} 39. Bd5 {[%emt 0:00:56]} Rf5 {[%emt 0:00:45]} 40. Re2 {[%emt 0:00:53]} Rh5 {[%emt 0:04:27]} 41. Qg3 {[%emt 0:03:07]} Kh7 {[%emt 0:00:38]} 42. Qc7 {[%emt 0:02:06]} g3 {[%emt 0:08:24]} 43. fxg3 {[%emt 0:08:05]} Rf5 {[%emt 0:07:08]} 44. Kg2 {[%emt 0:04:32]} Ng4 {[%emt 0:05:10]} 45. Qe7 {[%emt 0:01:47]} Rf2+ {[%emt 0:03:38]} 46. Rxf2 {[%emt 0:01:08]} Qxf2+ {[%emt 0:00:01]} 47. Kh3 {[%emt 0:00:18]} Nh6 {[%emt 0:01:33]} 48. g4 {[%emt 0:04:32]} Qf1+ {[%emt 0:00:58]} 49. Kg3 {[%emt 0:00:30]} Qg1+ {[%emt 0:00:32]} 50. Bg2 {[%emt 0:00:16]} Qa1 {[%emt 0:01:07]} 51. Qe2 {[%emt 0:01:13]} Qd4 {[%emt 0:00:50]} 52. Bf3 {[%emt 0:01:10]} Kg7 {[%emt 0:00:59]} 53. Kg2 {[%emt 0:00:45]} Qf4 {[%emt 0:00:26]} 54. h3 {[%emt 0:00:36]} Ng8 {[%emt 0:00:52]} 55. Bd5 {[%emt 0:01:55]} Nf6 {[%emt 0:00:48]} 56. Qf2 {[%emt 0:00:08]} Qe5 {[%emt 0:00:54]} 57. Qd2 {[%emt 0:02:20]} Ng8 {[%emt 0:01:39]} 58. Kf3 {[%emt 0:01:31]} g5 {[%emt 0:00:39]} 59. Kg2 {[%emt 0:00:47]} Ne7 {[%emt 0:00:18]} 60. Kf2 {[%emt 0:02:20]} Ng6 {[%emt 0:00:26]} 61. Qe3 {[%emt 0:00:09]} Qb2+ {[%emt 0:01:15]} 62. Qe2 {[%emt 0:00:05]} Qd4+ {[%emt 0:00:13]} 63. Qe3 {[%emt 0:00:06]} 1/2-1/2

[Event "8. Arber-Schachopen 2019"]
[Site "Bodenmais"]
[Date "2019.07.30"]
[Round "4.23"]
[White "Weisheit, Erik"]
[Black "Kottmair, Toni"]
[Result "0-1"]
[ECO "C36"]
[WhiteElo "1862"]
[BlackElo "2086"]
[Annotator "NA"]
[PlyCount "84"]
[EventDate "2019.07.27"]
[EventCountry "GER"]
[SourceTitle "playchess.com"]
[Source "ChessBase"]
[SourceQuality "1"]
[TimeControl "40/5400+30:1800+30"]

1. e4 {[%emt 0:05:39]} e5 {[%emt 0:00:00]} 2. f4 {[%emt 0:00:53]} exf4 {[%emt 0:00:00]} 3. Nf3 {[%emt 0:00:09]} d5 {[%emt 0:00:00]} 4. exd5 {[%emt 0:02:57]} Nf6 {[%emt 0:00:31]} 5. d4 {[%emt 0:00:44]} Nxd5 {[%emt 0:03:27]} 6. Nc3 {[%emt 0:03:31]} Bb4 {[%emt 0:03:00]} 7. Qe2+ {[%emt 0:05:58]} Be6 {[%emt 0:12:40]} 8. Bd2 {[%emt 0:01:51]} Bxc3 {[%emt 0:19:04]} 9. bxc3 {[%emt 0:01:17]} O-O {[%emt 0:01:15]} 10. Kf2 {[%emt 0:01:38]} Re8 {[%emt 0:07:28]} 11. Qb5 {[%emt 0:10:29]} c6 {[%emt 0:08:12]} 12. Qxb7 {[%emt 0:02:07]} Nb6 {[%emt 0:00:24]} 13. Rb1 {[%emt 0:04:05]} Bc8 {[%emt 0:09:13]} 14. Rxb6 {[%emt 0:01:06]} Bxb7 {[%emt 0:00:07]} 15. Rxb7 {[%emt 0:00:06]} Qc8 {[%emt 0:02:26]} 16. Rb1 {[%emt 0:00:14]} Qc7 {[%emt 0:00:38]} 17. Ne5 {[%emt 0:01:55]} Rxe5 {[%emt 0:06:42]} 18. dxe5 {[%emt 0:00:06]} Qxe5 {[%emt 0:00:04]} 19. Bd3 {[%emt 0:02:08]} Qc5+ {[%emt 0:00:38]} 20. Kf3 {[%emt 0:01:09]} Nd7 {[%emt 0:00:36]} 21. Bxf4 {[%emt 0:01:49]} Ne5+ {[%emt 0:00:36]} 22. Bxe5 {[%emt 0:00:49]} Qxe5 {[%emt 0:00:03]} 23. c4 {[%emt 0:00:56]} Re8 {[%emt 0:00:20]} 24. g3 {[%emt 0:02:00]} Qe3+ {[%emt 0:01:17]} 25. Kg2 {[%emt 0:00:10]} Qd2+ {[%emt 0:00:38]} 26. Kh3 {[%emt 0:00:34]} g6 {[%emt 0:02:30]} 27. Rhd1 {[%emt 0:06:46]} Qa5 {[%emt 0:00:21]} 28. Kg2 {[%emt 0:01:00]} Re7 {[%emt 0:02:06]} 29. Ra1 {[%emt 0:01:36]} h5 {[%emt 0:01:42]} 30. Rf1 {[%emt 0:01:00]} h4 {[%emt 0:00:48]} 31. Rf2 {[%emt 0:04:59]} Qc3 {[%emt 0:02:28]} 32. Rb1 {[%emt 0:00:39]} hxg3 {[%emt 0:00:41]} 33. hxg3 {[%emt 0:00:17]} Qa3 {[%emt 0:01:25]} 34. Ra1 {[%emt 0:00:17]} Qb2 {[%emt 0:00:13]} 35. Rff1 {[%emt 0:00:05]} Re3 {[%emt 0:00:17]} 36. Kh3 {[%emt 0:04:21]} Qe5 {[%emt 0:00:17]} 37. Rg1 {[%emt 0:03:03]} Rxg3+ {[%emt 0:00:09]} 38. Rxg3 {[%emt 0:00:04]} Qxa1 {[%emt 0:00:03]} 39. Rg5 {[%emt 0:01:29]} Qxa2 {[%emt 0:02:47]} 40. Rc5 {[%emt 0:01:59]} Qa6 {[%emt 0:00:38]} 41. Kg4 {[%emt 0:31:44]} Qb6 {[%emt 0:30:24]} 42. Re5 {[%emt 0:00:59]} Qd4+ {[%emt 0:01:02]} 0-1

[Event "8. Arber-Schachopen 2019"]
[Site "Bodenmais"]
[Date "2019.07.30"]
[Round "4.24"]
[White "Schwenkreis, Thomas"]
[Black "Kiwitz, Henri"]
[Result "1/2-1/2"]
[ECO "C26"]
[WhiteElo "2048"]
[BlackElo "1755"]
[Annotator "NA"]
[PlyCount "57"]
[EventDate "2019.07.27"]
[EventCountry "GER"]
[SourceTitle "playchess.com"]
[Source "ChessBase"]
[SourceQuality "1"]
[TimeControl "40/5400+30:1800+30"]

1. e4 {[%emt 0:00:00]} e5 {[%emt 0:00:51]} 2. Nc3 {[%emt 0:00:00]} Nf6 {[%emt 0:00:22]} 3. g3 {[%emt 0:00:00]} d5 {[%emt 0:01:07]} 4. exd5 {[%emt 0:00:00]} Nxd5 {[%emt 0:00:06]} 5. Bg2 {[%emt 0:00:00]} Nxc3 {[%emt 0:00:05]} 6. bxc3 {[%emt 0:00:00]} Nc6 {[%emt 0:00:07]} 7. Ne2 {[%emt 0:00:05]} Be6 8. O-O {[%emt 0:00:10]} Bd5 {[%emt 0:00:36]} 9. f3 {[%emt 0:01:12]} Bc5+ {[%emt 0:02:00]} 10. Kh1 {[%emt 0:00:01]} Qf6 {[%emt 0:04:24]} 11. d3 {[%emt 0:00:16]} h5 {[%emt 0:01:08]} 12. c4 {[%emt 0:01:43]} Be6 {[%emt 0:01:15]} 13. f4 {[%emt 0:00:35]} h4 {[%emt 0:14:49]} 14. Qe1 {[%emt 0:05:12]} O-O-O {[%emt 0:35:12]} 15. Bb2 {[%emt 0:03:22]} hxg3 {[%emt 0:04:15]} 16. Qxg3 {[%emt 0:16:51]} exf4 {[%emt 0:02:35]} 17. Qf3 {[%emt 0:04:47]} Qxb2 {[%emt 0:09:39]} 18. Nxf4 {[%emt 0:03:08]} Qxc2 {[%emt 0:07:28]} 19. Rab1 {[%emt 0:00:40]} Bd7 {[%emt 0:08:44]} 20. Rb5 {[%emt 0:03:51]} Bb6 {[%emt 0:03:03]} 21. Ne2 {[%emt 0:01:04]} Qd2 {[%emt 0:01:39]} 22. Nf4 {[%emt 0:02:04]} Qe3 {[%emt 0:00:10]} 23. Qxe3 Bxe3 24. Nd5 {[%emt 0:03:27]} Bd4 {[%emt 0:01:29]} 25. Rf4 {[%emt 0:00:36]} Be5 {[%emt 0:00:27]} 26. Ne7+ {[%emt 0:01:11]} Nxe7 {[%emt 0:00:48]} 27. Bxb7+ {[%emt 0:00:09]} Kb8 {[%emt 0:00:01]} 28. Bc6+ {[%emt 0:01:29]} Kc8 {[%emt 0:00:07]} 29. Bb7+ {[%emt 0:00:16]} 1/2-1/2

[Event "8. Arber-Schachopen 2019"]
[Site "Bodenmais"]
[Date "2019.07.30"]
[Round "4.25"]
[White "Malditz, Dieter"]
[Black "Palmi, Herbert"]
[Result "0-1"]
[ECO "A41"]
[WhiteElo "1869"]
[BlackElo "2056"]
[Annotator "NA"]
[PlyCount "72"]
[EventDate "2019.07.27"]
[EventCountry "GER"]
[SourceTitle "playchess.com"]
[Source "ChessBase"]
[SourceQuality "1"]
[TimeControl "40/5400+30:1800+30"]

1. d4 {[%emt 0:00:00]} d6 {[%emt 0:01:07]} 2. c4 {[%emt 0:00:50]} c6 {[%emt 0:02:45]} 3. Nc3 {[%emt 0:01:00]} e5 {[%emt 0:01:24]} 4. e4 {[%emt 0:02:23]} Nf6 {[%emt 0:00:16]} 5. Nf3 {[%emt 0:01:30]} Qc7 {[%emt 0:00:30]} 6. Be2 {[%emt 0:00:56]} Bg4 7. Be3 {[%emt 0:01:53]} Be7 {[%emt 0:02:04]} 8. O-O {[%emt 0:00:48]} Nbd7 {[%emt 0:00:14]} 9. Ne1 {[%emt 0:01:07]} Bxe2 {[%emt 0:00:18]} 10. Qxe2 {[%emt 0:00:16]} O-O {[%emt 0:00:18]} 11. f4 {[%emt 0:03:15]} Rfe8 {[%emt 0:01:08]} 12. dxe5 {[%emt 0:13:33]} dxe5 {[%emt 0:00:14]} 13. f5 {[%emt 0:00:25]} Bc5 {[%emt 0:01:31]} 14. Nd3 {[%emt 0:01:41]} Bxe3+ {[%emt 0:01:03]} 15. Qxe3 {[%emt 0:00:13]} b6 {[%emt 0:04:38]} 16. h3 {[%emt 0:05:08]} Qd6 {[%emt 0:02:05]} 17. Ne2 Rad8 {[%emt 0:00:40]} 18. Rad1 {[%emt 0:09:55]} Nc5 19. Nf2 {[%emt 0:04:37]} Qe7 {[%emt 0:03:59]} 20. b4 {[%emt 0:01:39]} Nb7 {[%emt 0:00:33]} 21. a3 {[%emt 0:00:45]} h6 {[%emt 0:03:57]} 22. g4 {[%emt 0:05:49]} Nh7 {[%emt 0:01:22]} 23. Nd3 {[%emt 0:11:37]} Nd6 {[%emt 0:11:41]} 24. Rc1 {[%emt 0:02:47]} Qg5 {[%emt 0:10:20]} 25. Qf3 {[%emt 0:03:06]} b5 {[%emt 0:03:01]} 26. cxb5 {[%emt 0:03:02]} cxb5 {[%emt 0:00:13]} 27. Rc5 {[%emt 0:03:44]} Nc4 {[%emt 0:01:04]} 28. Qg3 {[%emt 0:05:17]} Qe3+ {[%emt 0:01:39]} 29. Qxe3 {[%emt 0:00:54]} Nxe3 {[%emt 0:00:06]} 30. Nxe5 {[%emt 0:00:36]} Nxf1 {[%emt 0:00:19]} 31. Kxf1 {[%emt 0:00:01]} a6 {[%emt 0:02:02]} 32. Nc3 {[%emt 0:02:03]} Nf6 {[%emt 0:07:55]} 33. Ke2 {[%emt 0:01:17]} Nxe4 {[%emt 0:02:57]} 34. Nxe4 {[%emt 0:00:23]} f6 {[%emt 0:00:04]} 35. Nc6 {[%emt 0:02:15]} Rxe4+ {[%emt 0:00:15]} 36. Kf3 {[%emt 0:00:16]} Rde8 {[%emt 0:00:08]} 0-1

[Event "8. Arber-Schachopen 2019"]
[Site "Bodenmais"]
[Date "2019.07.30"]
[Round "4.26"]
[White "Kolb, Wolfgang"]
[Black "David, Sebastian"]
[Result "1-0"]
[ECO "A10"]
[WhiteElo "2099"]
[BlackElo "1715"]
[Annotator "NA"]
[PlyCount "59"]
[EventDate "2019.07.27"]
[EventCountry "GER"]
[SourceTitle "playchess.com"]
[Source "ChessBase"]
[SourceQuality "1"]
[TimeControl "40/5400+30:1800+30"]

1. c4 {[%emt 0:00:00]} b6 {[%emt 0:00:00]} 2. Nc3 {[%emt 0:00:00]} Bb7 {[%emt 0:00:15]} 3. e4 {[%emt 0:00:36]} e5 {[%emt 0:02:28]} 4. g3 {[%emt 0:01:49]} Nc6 {[%emt 0:00:24]} 5. Bg2 {[%emt 0:00:19]} Nf6 {[%emt 0:00:52]} 6. Nge2 {[%emt 0:00:19]} Bc5 {[%emt 0:01:42]} 7. O-O {[%emt 0:01:02]} O-O {[%emt 0:00:57]} 8. d3 {[%emt 0:00:44]} h6 {[%emt 0:00:36]} 9. a3 {[%emt 0:02:06]} a5 {[%emt 0:01:52]} 10. Rb1 {[%emt 0:01:40]} Nd4 {[%emt 0:07:53]} 11. b4 {[%emt 0:06:11]} axb4 {[%emt 0:03:53]} 12. axb4 {[%emt 0:00:05]} Nxe2+ {[%emt 0:01:36]} 13. Qxe2 {[%emt 0:00:19]} Be7 {[%emt 0:04:23]} 14. f4 {[%emt 0:10:10]} d6 {[%emt 0:05:12]} 15. Be3 {[%emt 0:03:33]} Bc8 {[%emt 0:06:35]} 16. Ra1 {[%emt 0:05:49]} Bd7 {[%emt 0:04:11]} 17. Rxa8 {[%emt 0:02:15]} Qxa8 {[%emt 0:00:16]} 18. Qb2 {[%emt 0:00:33]} Qb7 {[%emt 0:01:02]} 19. fxe5 {[%emt 0:01:48]} dxe5 {[%emt 0:00:51]} 20. Nd5 {[%emt 0:01:53]} Nxd5 {[%emt 0:01:18]} 21. exd5 {[%emt 0:00:11]} Bd6 {[%emt 0:03:50]} 22. Qc3 {[%emt 0:07:32]} Re8 {[%emt 0:08:47]} 23. c5 {[%emt 0:01:46]} bxc5 {[%emt 0:01:10]} 24. bxc5 {[%emt 0:00:06]} Bf8 {[%emt 0:01:34]} 25. c6 {[%emt 0:00:17]} Bxc6 {[%emt 0:03:18]} 26. dxc6 {[%emt 0:00:34]} Qb5 {[%emt 0:00:44]} 27. Qc4 {[%emt 0:10:18]} Qxc4 {[%emt 0:02:47]} 28. dxc4 {[%emt 0:00:13]} f6 {[%emt 0:02:21]} 29. Bd5+ {[%emt 0:00:11]} Kh7 {[%emt 0:00:08]} 30. Rb1 {[%emt 0:01:03]} 1-0

[Event "8. Arber-Schachopen 2019"]
[Site "Bodenmais"]
[Date "2019.07.31"]
[Round "5.2"]
[White "Hausner, Ivan"]
[Black "Delchev, Aleksander"]
[Result "0-1"]
[ECO "A13"]
[WhiteElo "2370"]
[BlackElo "2571"]
[Annotator "ChessBase"]
[PlyCount "81"]
[EventDate "2019.07.27"]
[EventCountry "GER"]
[SourceTitle "playchess.com"]
[Source "ChessBase"]
[SourceQuality "1"]
[TimeControl "40/5400+30:1800+30"]

1. c4 {[%emt 0:00:00]} e6 {[%emt 0:01:55]} 2. g3 {[%emt 0:00:00]} d5 {[%emt 0:00:04]} 3. Bg2 {[%emt 0:00:00]} Nf6 {[%emt 0:00:07]} 4. Nf3 {[%emt 0:00:00]} d4 {[%emt 0:00:14]} 5. O-O {[%emt 0:00:50]} c5 {[%emt 0:00:06]} 6. e3 {[%emt 0:00:41]} Nc6 {[%emt 0:00:05]} 7. exd4 {[%emt 0:00:04]} cxd4 {[%emt 0:00:04]} 8. d3 {[%emt 0:00:26]} h6 {[%emt 0:00:09]} 9. Re1 {[%emt 0:02:01]} Bd6 {[%emt 0:00:20]} 10. Na3 {[%emt 0:02:01]} O-O {[%emt 0:00:08]} 11. Nc2 {[%emt 0:02:03]} a5 {[%emt 0:03:10]} 12. a3 {[%emt 0:12:32]} e5 {[%emt 0:00:45]} 13. Rb1 {[%emt 0:00:02]} a4 {[%emt 0:01:01]} 14. b4 {[%emt 0:00:06]} axb3 {[%emt 0:00:04]} 15. Rxb3 {[%emt 0:00:04]} Re8 {[%emt 0:16:27]} 16. Nd2 {[%emt 0:03:34]} Na5 {[%emt 0:10:11]} 17. Rb1 {[%emt 0:00:33]} Bf5 {[%emt 0:07:15]} 18. Qe2 {[%emt 0:03:05]} Qd7 {[%emt 0:08:39]} 19. Ne4 {[%emt 0:01:34]} Nxe4 {[%emt 0:00:19]} 20. Bxe4 {[%emt 0:00:07]} Bxe4 {[%emt 0:05:34]} 21. Qxe4 {[%emt 0:00:07]} Bc5 {[%emt 0:00:43]} 22. Nb4 {[%emt 0:01:06]} b6 {[%emt 0:07:07]} 23. Nd5 {[%emt 0:00:58]} f5 {[%emt 0:02:18]} 24. Qf3 {[%emt 0:16:52]} Qf7 {[%emt 0:07:47]} 25. g4 {[%emt 0:05:37]} e4 {[%emt 0:01:01]} 26. Qxf5 {[%emt 0:00:30]} Qxf5 {[%emt 0:00:07]} 27. gxf5 {[%emt 0:00:06]} exd3 {[%emt 0:00:05]} 28. Rd1 {[%emt 0:01:10]} Nxc4 {[%emt 0:12:27]} 29. Nc7 {[%emt 0:01:32]} Re2 {[%emt 0:00:02]} 30. Nxa8 {[%emt 0:00:19]} d2 {[%emt 0:00:02]} 31. Bxd2 {[%emt 0:17:13]} Nxd2 {[%emt 0:00:05]} 32. Rxb6 {[%emt 0:00:36]} d3 {[%emt 0:07:35]} 33. Rc6 {[%emt 0:01:07]} Bxf2+ {[%emt 0:01:26]} 34. Kg2 {[%emt 0:00:09]} Be1+ {[%emt 0:00:50]} 35. Kh3 {[%emt 0:00:23]} Ne4 {[%emt 0:01:01]} 36. Rb1 {[%emt 0:01:28]} Ng5+ {[%emt 0:05:00]} 37. Kg4 {[%emt 0:00:22]} Re4+ {[%emt 0:01:58]} 38. Kh5 {[%emt 0:00:07]} Nf7 {[%emt 0:01:19]} 39. Rxe1 {[%emt 0:03:49]} Rxe1 {[%emt 0:00:06]} 40. Rc8+ {[%emt 0:00:03]} Kh7 {[%emt 0:00:04]} 41. Nb6 {[%emt 0:30:09] Kg8} 0-1